bitfinex-derivatives/quotes_BTCF0:USTF0_20250406
["timestamp","ask_amount","ask_price","bid_price","bid_amount"]
[1743943011032,0.3695747,82760.0,82759.0,0.0852628]
[1743943011234,0.3689347,82760.0,82759.0,0.0852628]
[1743943012937,0.3689347,82760.0,82759.0,0.1169628]
[1743943013129,0.51389765,82760.0,82759.0,0.1169628]
[1743943013330,0.51453765,82760.0,82759.0,0.1169628]
[1743943016633,0.51453765,82760.0,82759.0,0.0852628]
[1743943016840,0.51453765,82760.0,82759.0,0.00064]
[1743943017840,0.79453765,82760.0,82759.0,0.00064]
[1743943018035,0.51453765,82760.0,82759.0,0.00064]
[1743943018229,0.76453765,82760.0,82759.0,0.00064]
[1743943018431,0.0423133,82756.0,82745.0,0.116537]
[1743943018631,0.0423133,82756.0,82749.0,0.29011641]
[1743943018632,0.0846327,82750.0,82749.0,0.29011641]
[1743943018835,0.3153527,82750.0,82749.0,1.79003641]
[1743943019343,0.3146327,82750.0,82749.0,1.79003641]
[1743943019528,0.6155327,82750.0,82749.0,1.79003641]
[1743943019732,0.3462127,82750.0,82749.0,1.79003641]
[1743943019931,0.6055327,82750.0,82749.0,1.79003641]
[1743943020143,0.6261727,82750.0,82749.0,1.50064]
[1743943020332,0.6261727,82750.0,82749.0,1.50164]
[1743943020929,0.6569727,82750.0,82749.0,1.50164]
[1743943021529,0.6569727,82750.0,82749.0,0.00264]
[1743943021735,0.0846348,82748.0,82747.0,8e-05]
[1743943021937,0.0846348,82748.0,82743.0,0.00952558]
[1743943021938,0.0846388,82744.0,82743.0,0.00952558]
[1743943022234,0.5852788,82744.0,82743.0,0.00952558]
[1743943022640,0.3552788,82744.0,82743.0,0.00952558]
[1743943023041,0.3552788,82744.0,82743.0,0.01052558]
[1743943023243,0.3552788,82744.0,82743.0,0.01116558]
[1743943024352,0.6052788,82744.0,82743.0,0.01116558]
[1743943024546,0.3552788,82744.0,82743.0,0.01052558]
[1743943025339,0.3552788,82744.0,82743.0,0.09516548]
[1743943025639,0.0852788,82744.0,82743.0,1.59516548]
[1743943025837,0.0852788,82744.0,82743.0,1.62890548]
[1743943026037,0.00064,82744.0,82743.0,1.62890548]
[1743943026438,0.0852788,82744.0,82743.0,1.62890548]
[1743943027045,0.3152788,82744.0,82743.0,1.51116558]
[1743943027343,0.4152788,82744.0,82743.0,0.01116558]
[1743943027644,0.4152788,82744.0,82743.0,0.01052558]
[1743943028043,0.3152788,82744.0,82743.0,0.01052558]
[1743943028238,0.3795788,82744.0,82743.0,0.01052558]
[1743943028839,0.6395788,82744.0,82743.0,0.01052558]
[1743943029039,0.3795788,82744.0,82743.0,0.01052558]
[1743943030237,0.6195788,82744.0,82743.0,0.01052558]
[1743943030547,0.3795788,82744.0,82743.0,0.01052558]
[1743943030846,0.6595788,82744.0,82743.0,0.01052558]
[1743943032250,0.6595788,82744.0,82743.0,0.00160428]
[1743943032438,0.0846511,82732.0,82731.0,1.5305]
[1743943032743,0.5846511,82732.0,82731.0,1.50064]
[1743943032947,0.3253711,82732.0,82731.0,1.50064]
[1743943033448,0.3882711,82732.0,82731.0,1.50064]
[1743943033844,0.3892711,82732.0,82731.0,1.50064]
[1743943034245,0.3902711,82732.0,82731.0,1.50966407]
[1743943034439,0.3902711,82732.0,82731.0,1.59431617]
[1743943036545,0.3902711,82732.0,82731.0,0.00966407]
[1743943036746,0.7510711,82732.0,82731.0,0.00902407]
[1743943036948,0.0846521,82731.0,82730.0,8e-05]
[1743943037147,0.3452921,82731.0,82730.0,8e-05]
[1743943037452,0.4093921,82731.0,82730.0,0.00076]
[1743943038450,0.4103921,82731.0,82730.0,0.00076]
[1743943038853,0.4093921,82731.0,82730.0,0.00076]
[1743943040057,0.4103921,82731.0,82730.0,0.00076]
[1743943042858,0.4103921,82731.0,82730.0,0.00968401]
[1743943043058,0.0423273,82729.0,82725.0,8e-05]
[1743943043257,0.0846573,82726.0,82725.0,8e-05]
[1743943043459,0.0846654,82718.0,82717.0,0.1157657]
[1743943043660,0.3355854,82718.0,82717.0,0.1164457]
[1743943044054,0.3355854,82718.0,82717.0,1.6164457]
[1743943044251,0.3355854,82718.0,82717.0,0.1164457]
[1743943044451,0.4004854,82718.0,82717.0,0.1164457]
[1743943044757,0.4014854,82718.0,82717.0,0.1164457]
[1743943044948,0.4014854,82718.0,82717.0,0.12487078]
[1743943045148,0.4024854,82718.0,82717.0,0.12487078]
[1743943045757,0.4024854,82718.0,82717.0,0.15617078]
[1743943049061,0.25292,82718.0,82717.0,0.15617078]
[1743943049253,0.00292,82718.0,82717.0,0.51697078]
[1743943049458,0.002,82718.0,82717.0,0.51697078]
[1743943049658,0.002,82718.0,82717.0,2.01697078]
[1743943050159,0.002,82718.0,82717.0,2.01769078]
[1743943050365,0.2002126,82730.0,82729.0,0.0846542]
[1743943050552,0.4410526,82730.0,82729.0,0.0846542]
[1743943050753,0.4410526,82730.0,82729.0,0.0852942]
[1743943051154,0.4410526,82730.0,82729.0,0.1155942]
[1743943051554,0.4420526,82730.0,82729.0,0.1155942]
[1743943053163,0.3573941,82730.0,82729.0,0.1155942]
[1743943053761,0.27274,82730.0,82729.0,0.1155942]
[1743943053960,0.00018131,82740.0,82734.0,0.0846491]
[1743943054152,0.15086131,82740.0,82739.0,0.445444]
[1743943054370,0.15086131,82740.0,82739.0,0.446244]
[1743943054556,0.15086131,82740.0,82739.0,1.946244]
[1743943054764,0.15018131,82740.0,82739.0,1.946244]
[1743943054962,0.15018131,82740.0,82739.0,2.009444]
[1743943055669,0.23482421,82740.0,82739.0,2.010444]
[1743943055863,0.15090131,82740.0,82739.0,2.012444]
[1743943056465,0.23554421,82740.0,82739.0,2.012444]
[1743943056660,0.26624421,82740.0,82739.0,1.981844]
[1743943056868,0.29714421,82740.0,82739.0,1.981844]
[1743943057167,0.29714421,82740.0,82739.0,0.481844]
[1743943060172,0.29714421,82740.0,82739.0,0.121044]
[1743943060373,0.29714421,82740.0,82739.0,0.481044]
[1743943060575,0.29714421,82740.0,82739.0,0.481844]
[1743943063670,0.29714421,82740.0,82739.0,0.3972]
[1743943063880,0.65794421,82740.0,82739.0,0.0038]
[1743943064075,0.69024421,82740.0,82739.0,0.0038]
[1743943064269,0.69024421,82740.0,82739.0,0.003]
[1743943064665,0.75488131,82740.0,82738.0,8e-05]
[1743943064871,0.0846511,82732.0,82731.0,0.2169173]
[1743943065171,0.0846511,82732.0,82722.0,0.3608]
[1743943065172,0.0846532,82730.0,82729.0,0.2169173]
[1743943065478,0.3146532,82730.0,82729.0,0.2169173]
[1743943065879,0.3772532,82730.0,82729.0,0.2169173]
[1743943068281,0.0846552,82728.0,82727.0,1.5]
[1743943068483,0.3146552,82728.0,82727.0,1.5]
[1743943069475,0.3152952,82728.0,82727.0,1.50068]
[1743943070480,0.3162952,82728.0,82727.0,1.50068]
[1743943070680,0.3172952,82728.0,82727.0,1.50068]
[1743943071283,0.3172952,82728.0,82727.0,1.86148]
[1743943071783,0.3172952,82728.0,82727.0,1.50068]
[1743943074075,0.3172952,82728.0,82727.0,1.53238]
[1743943075977,0.3800952,82728.0,82727.0,1.53238]
[1743943076993,0.0846573,82726.0,82719.0,8e-05]
[1743943077184,0.0846573,82726.0,82719.0,0.00092]
[1743943077185,0.0846634,82720.0,82719.0,0.00092]
[1743943077384,0.3454234,82720.0,82719.0,0.00084]
[1743943077894,0.3975834,82720.0,82719.0,0.00084]
[1743943078585,0.0846654,82718.0,82717.0,0.00918508]
[1743943078787,0.3254254,82718.0,82717.0,0.00918508]
[1743943079187,0.3254254,82718.0,82717.0,0.00990508]
[1743943079785,0.3254254,82718.0,82717.0,0.00918508]
[1743943080399,0.3254254,82718.0,82717.0,0.00910508]
[1743943080692,0.0846665,82717.0,82716.0,0.28939641]
[1743943080897,0.4210265,82717.0,82716.0,0.29003641]
[1743943081399,0.4210265,82717.0,82716.0,0.29932534]
[1743943082590,0.4210265,82717.0,82716.0,0.00928893]
[1743943082887,0.0846675,82716.0,82715.0,8e-05]
[1743943083088,0.3554675,82716.0,82715.0,0.00076]
[1743943083287,0.4174675,82716.0,82715.0,0.00076]
[1743943085197,0.4174675,82716.0,82715.0,0.00976562]
[1743943086790,0.4696675,82716.0,82715.0,0.00976562]
[1743943090594,0.4896675,82716.0,82715.0,0.00976562]
[1743943090797,0.6396675,82716.0,82715.0,0.00976562]
[1743943090997,0.0846869,82697.0,82690.0,0.0315]
[1743943091196,0.3256869,82697.0,82696.0,0.29857084]
[1743943091402,0.3256869,82697.0,82696.0,1.79857084]
[1743943091699,0.3246869,82697.0,82696.0,1.79857084]
[1743943091902,0.3246869,82697.0,82696.0,1.88325884]
[1743943092299,0.24,82697.0,82696.0,1.91525884]
[1743943092495,0.24,82697.0,82696.0,2.27605884]
[1743943092701,0.0846849,82699.0,82698.0,0.0846859]
[1743943092894,0.3546849,82699.0,82698.0,0.0846859]
[1743943093693,0.27,82699.0,82698.0,0.0846859]
[1743943094003,0.3546849,82699.0,82698.0,0.0846859]
[1743943094299,0.27,82699.0,82698.0,0.0846859]
[1743943094504,0.00018131,82705.0,82704.0,0.0846798]
[1743943094796,0.00118131,82705.0,82704.0,1.9454798]
[1743943094995,0.00018131,82705.0,82704.0,1.9454798]
[1743943095199,0.08486011,82705.0,82704.0,1.9454798]
[1743943095396,0.0423348,82714.0,82709.0,0.0423371]
[1743943095613,0.2146703,82714.0,82713.0,0.0846695]
[1743943095803,0.0856703,82714.0,82713.0,0.0846695]
[1743943096200,0.0856703,82714.0,82713.0,1.9454695]
[1743943096406,0.0846703,82714.0,82713.0,1.9454695]
[1743943097111,0.0856703,82714.0,82713.0,1.9454695]
[1743943097509,0.0846703,82714.0,82713.0,1.9454695]
[1743943098710,0.0846777,82706.0,82688.0,0.72210372]
[1743943098906,0.0856777,82706.0,82705.0,0.00026131]
[1743943099407,0.0856777,82706.0,82705.0,0.08494011]
[1743943099813,0.0856777,82706.0,82705.0,0.44574011]
[1743943100110,0.0846777,82706.0,82705.0,0.44574011]
[1743943100410,0.0846777,82706.0,82705.0,1.94674011]
[1743943100904,0.0846777,82706.0,82705.0,1.94874011]
[1743943104408,0.0846777,82706.0,82705.0,1.58794011]
[1743943104615,0.0846777,82706.0,82705.0,1.97904011]
[1743943105705,0.0846777,82706.0,82705.0,1.97968011]
[1743943111228,0.0846777,82706.0,82705.0,2.01058011]
[1743943112719,0.10840513,82710.0,82709.0,0.0846747]
[1743943112921,0.19307873,82710.0,82709.0,0.0853947]
[1743943114022,0.19307873,82710.0,82709.0,0.1506947]
[1743943115421,0.22607873,82710.0,82709.0,0.1506947]
[1743943116219,0.22607873,82710.0,82709.0,0.0863947]
[1743943116411,0.25757873,82710.0,82709.0,0.0863947]
[1743943116612,0.25861874,82710.0,82709.0,0.0863947]
[1743943116809,0.25861874,82710.0,82709.0,1.5863947]
[1743943117013,0.25757873,82710.0,82709.0,1.5863947]
[1743943117324,0.22607873,82710.0,82709.0,1.5863947]
[1743943122626,0.22607873,82710.0,82709.0,1.50172]
[1743943122829,0.22607873,82710.0,82709.0,0.00172]
[1743943123123,0.23719874,82710.0,82709.0,0.00172]
[1743943126330,0.59799874,82710.0,82709.0,0.00172]
[1743943126517,0.48959361,82710.0,82709.0,0.001]
[1743943130731,0.55959361,82710.0,82709.0,0.001]
[1743943133837,0.61841509,82710.0,82709.0,0.001]
[1743943134728,0.0846777,82706.0,82705.0,0.00026131]
[1743943134933,0.3656777,82706.0,82705.0,0.00026131]
[1743943135633,0.3656777,82706.0,82580.0,0.18445001]
[1743943135634,0.0846972,82687.0,82683.0,0.3608]
[1743943135839,0.0423522,82680.0,82671.0,0.0006048]
[1743943136036,0.0847105,82674.0,82673.0,0.4386929]
[1743943136238,0.3147105,82674.0,82673.0,0.4386929]
[1743943136440,0.3147105,82674.0,82673.0,0.4386129]
[1743943136739,0.3147105,82674.0,82673.0,1.9386129]
[1743943136931,0.3786105,82674.0,82673.0,2.0243244]
[1743943137129,0.3786105,82674.0,82673.0,1.9396129]
[1743943137335,0.3786105,82674.0,82673.0,0.4396129]
[1743943137526,0.3806105,82674.0,82673.0,0.4416129]
[1743943137731,0.39373206,82674.0,82673.0,1.9416129]
[1743943138230,0.39373206,82674.0,82673.0,2.0263244]
[1743943138635,0.39373206,82674.0,82673.0,1.9416129]
[1743943139343,0.39373206,82674.0,82673.0,1.51215925]
[1743943140652,0.003,82674.0,82673.0,1.51215925]
[1743943140950,0.0847105,82674.0,82673.0,1.68158045]
[1743943141444,0.0847105,82674.0,82673.0,1.59686895]
[1743943144443,0.0847105,82674.0,82673.0,1.59686895]
[1743943145252,0.0847105,82674.0,82673.0,1.59750895]
[1743943149654,0.0847089,82676.0,82675.0,0.1270616]
[1743943149846,0.0847089,82676.0,82675.0,0.0854295]
[1743943150154,0.0857089,82676.0,82675.0,0.0854295]
[1743943150357,0.0847046,82680.0,82679.0,0.1270555]
[1743943150655,0.0857046,82680.0,82679.0,0.1270555]
[1743943150954,0.0857046,82680.0,82679.0,1.5750522]
[1743943151559,0.1499046,82680.0,82679.0,1.5750522]
[1743943152747,0.1509046,82680.0,82679.0,1.6094522]
[1743943153648,0.1519046,82680.0,82679.0,1.628115]
[1743943154457,0.1519046,82680.0,82679.0,1.6114522]
[1743943154659,0.1519046,82680.0,82679.0,1.6426522]
[1743943156558,0.1519046,82680.0,82679.0,1.65932579]
[1743943157462,0.1519046,82680.0,82679.0,1.6426522]
[1743943158260,0.1519046,82680.0,82679.0,0.0473522]
[1743943158760,0.1519046,82680.0,82679.0,1.5473522]
[1743943158954,0.1519046,82680.0,82679.0,1.5802522]
[1743943161963,0.1519046,82680.0,82679.0,1.5379]
[1743943162265,0.1519046,82680.0,82679.0,1.6226054]
[1743943163464,0.1519046,82680.0,82679.0,1.6539054]
[1743943164257,0.1519046,82680.0,82679.0,1.5379]
[1743943164763,0.1519046,82680.0,82679.0,1.6226054]
[1743943165665,0.1519046,82680.0,82679.0,0.005]
[1743943165963,0.2419046,82680.0,82679.0,0.005]
[1743943166265,0.2940646,82680.0,82679.0,0.005]
[1743943168564,0.2419046,82680.0,82679.0,0.005]
[1743943168760,0.2419046,82680.0,82679.0,0.0897054]
[1743943169366,0.1519046,82680.0,82679.0,1.5897054]
[1743943169562,0.1519046,82680.0,82679.0,1.63779968]
[1743943169768,0.0672,82680.0,82679.0,1.63779968]
[1743943169970,0.1519044,82680.0,82679.0,1.63779968]
[1743943171368,0.1519044,82680.0,82679.0,1.63791623]
[1743943172760,0.1509044,82680.0,82679.0,1.63791623]
[1743943174265,0.002,82680.0,82679.0,1.63791623]
[1743943174472,0.0846972,82692.0,82688.0,0.0423473]
[1743943174770,0.1167951,82690.0,82689.0,0.23935303]
[1743943175271,0.1167951,82690.0,82689.0,1.73935303]
[1743943175864,0.1164925,82692.0,82691.0,0.0846931]
[1743943176164,0.1164925,82692.0,82691.0,0.10150393]
[1743943177471,0.1174925,82692.0,82691.0,0.10550393]
[1743943177871,0.1174925,82692.0,82691.0,0.10560445]
[1743943178667,0.1164925,82692.0,82691.0,0.10560579]
[1743943178866,0.1174925,82692.0,82691.0,0.10960579]
[1743943180374,0.1174925,82692.0,82691.0,0.11024908]
[1743943182173,0.0423399,82704.0,82691.0,0.06790218]
[1743943182365,0.1270207,82704.0,82703.0,0.0846808]
[1743943182677,0.1280207,82704.0,82703.0,0.10223678]
[1743943182877,0.1280207,82704.0,82703.0,0.19783678]
[1743943183175,0.0433399,82704.0,82703.0,0.19783678]
[1743943183568,0.0433399,82704.0,82703.0,0.19883678]
[1743943184868,0.0433399,82704.0,82703.0,0.20083678]
[1743943187562,0.0433399,82704.0,82703.0,0.20091369]
[1743943187976,0.0433399,82704.0,82703.0,1.70091369]
[1743943188175,0.0423399,82704.0,82703.0,1.70091369]
[1743943188967,0.0423399,82704.0,82703.0,1.60531369]
[1743943189167,0.0746399,82704.0,82703.0,1.60531369]
[1743943191076,0.08485382,82712.0,82711.0,0.0846726]
[1743943191279,0.08585382,82712.0,82711.0,0.10166549]
[1743943191776,0.08585382,82712.0,82711.0,1.60230549]
[1743943192163,0.08685382,82712.0,82711.0,1.60230549]
[1743943192367,0.08685382,82712.0,82711.0,1.60228211]
[1743943193079,0.08685382,82712.0,82711.0,1.60225569]
[1743943194775,0.15135382,82712.0,82711.0,1.60225569]
[1743943196671,0.15135382,82712.0,82711.0,1.60223949]
[1743943200683,0.15135382,82712.0,82711.0,1.63293949]
[1743943201679,0.15135382,82712.0,82711.0,1.60223949]
[1743943202482,0.06668142,82712.0,82711.0,1.60223949]
[1743943202777,0.15035302,82712.0,82711.0,1.66793949]
[1743943203174,0.15035302,82712.0,82711.0,1.66822006]
[1743943204279,0.15035302,82712.0,82711.0,0.01784746]
[1743943204471,0.15135302,82712.0,82711.0,0.01784746]
[1743943204675,0.15135302,82712.0,82711.0,0.01720746]
[1743943205183,0.0846757,82708.0,82707.0,0.0846767]
[1743943205386,0.0846757,82708.0,82707.0,0.10190796]
[1743943205682,0.0946757,82708.0,82707.0,0.01723126]
[1743943206075,0.1910757,82708.0,82707.0,0.01723126]
[1743943206682,0.1910757,82708.0,82707.0,0.10190796]
[1743943207185,0.1910757,82708.0,82707.0,0.10290796]
[1743943209478,0.1910757,82708.0,82707.0,0.10291543]
[1743943210283,0.1910757,82708.0,82707.0,0.10355543]
[1743943212181,0.1910757,82708.0,82707.0,0.01887873]
[1743943212683,0.5518757,82708.0,82707.0,0.01887873]
[1743943212888,0.5528757,82708.0,82707.0,0.01887873]
[1743943215381,0.5528757,82708.0,82707.0,0.01894406]
[1743943217780,0.5528757,82708.0,82707.0,0.01885222]
[1743943219293,0.5528757,82708.0,82707.0,0.01884796]
[1743943220487,0.4884757,82708.0,82707.0,0.01884796]
[1743943220686,0.4884757,82708.0,82707.0,0.08214796]
[1743943220882,0.4884757,82708.0,82707.0,0.05084796]
[1743943221382,0.4884757,82708.0,82707.0,0.05089443]
[1743943221581,0.5193757,82708.0,82707.0,0.05089443]
[1743943223196,0.5193757,82708.0,82707.0,0.05084183]
[1743943224095,0.5193757,82708.0,82707.0,0.01884183]
[1743943224681,0.5193757,82708.0,82707.0,0.05034183]
[1743943225094,0.5193757,82708.0,82707.0,0.05033996]
[1743943226093,0.5193757,82708.0,82707.0,0.01883996]
[1743943228599,0.5193757,82708.0,82707.0,0.01879375]
[1743943230198,0.5193757,82708.0,82707.0,0.04939375]
[1743943230403,0.5193757,82708.0,82707.0,0.04938506]
[1743943234097,0.5193757,82708.0,82707.0,0.04933056]
[1743943235895,0.5193757,82708.0,82707.0,0.04932626]
[1743943236297,0.011,82708.0,82707.0,0.13400296]
[1743943236506,0.0846747,82709.0,82708.0,0.1270109]
[1743943236699,0.0846747,82709.0,82708.0,0.20699716]
[1743943237098,0.00018142,82712.0,82710.0,0.0846736]
[1743943237302,0.00018142,82712.0,82711.0,0.16595886]
[1743943237696,0.00018142,82712.0,82711.0,0.16606137]
[1743943238504,0.00118142,82712.0,82711.0,0.16606137]
[1743943238700,0.00118142,82712.0,82711.0,1.66606137]
[1743943238902,0.00018142,82712.0,82711.0,1.66606137]
[1743943239101,0.00118142,82712.0,82711.0,1.66606137]
[1743943239709,0.08585302,82712.0,82711.0,1.66606137]
[1743943240308,0.08585302,82712.0,82711.0,1.66670137]
[1743943242609,0.00118142,82712.0,82711.0,1.66670137]
[1743943243010,0.18064192,82726.0,82716.0,0.0423335]
[1743943243206,0.34195304,82732.0,82731.0,0.0846521]
[1743943243510,0.46295304,82732.0,82731.0,0.10184087]
[1743943243810,0.46295304,82732.0,82731.0,1.60184087]
[1743943243998,0.46295304,82732.0,82731.0,1.60248087]
[1743943244201,0.2483845,82732.0,82731.0,1.66628087]
[1743943244511,0.2533845,82732.0,82731.0,1.66628087]
[1743943245308,0.2583845,82732.0,82731.0,1.66628087]
[1743943245704,0.2583845,82732.0,82731.0,1.67554473]
[1743943246713,0.2583845,82732.0,82731.0,0.17554473]
[1743943250215,0.2912845,82732.0,82731.0,0.17554473]
[1743943250417,0.2912845,82732.0,82731.0,0.1754628]
[1743943253208,0.2912845,82732.0,82731.0,0.1430628]
[1743943256206,0.2912845,82732.0,82731.0,0.1744628]
[1743943257814,0.2912845,82732.0,82731.0,0.17444035]
[1743943260109,0.2902845,82732.0,82731.0,0.17444035]
[1743943260725,0.2902845,82732.0,82731.0,0.14304035]
[1743943262121,0.0433,82732.0,82731.0,0.14304035]
[1743943262321,0.0433,82732.0,82731.0,0.53394035]
[1743943262526,0.0433,82732.0,82731.0,0.5339046]
[1743943262717,0.1279511,82732.0,82731.0,0.5339046]
[1743943262917,0.0433,82732.0,82731.0,0.5339046]
[1743943263621,0.1279511,82732.0,82731.0,0.5339046]
[1743943265920,0.0433,82732.0,82731.0,0.5339046]
[1743943266221,0.0433,82732.0,82731.0,0.53391479]
[1743943266721,0.0433,82732.0,82731.0,0.53392218]
[1743943268012,0.0433,82732.0,82731.0,0.53392737]
[1743943269325,0.01240511,82737.0,82736.0,0.084647]
[1743943269619,0.0846447,82739.0,82738.0,0.084645]
[1743943269824,0.1164447,82739.0,82738.0,0.10171641]
[1743943270008,0.001,82739.0,82738.0,0.10171641]
[1743943270215,0.0846359,82748.0,82747.0,0.0846358]
[1743943270410,0.1269534,82748.0,82747.0,0.10170721]
[1743943270614,0.1269534,82748.0,82747.0,1.60170721]
[1743943271015,0.1269534,82748.0,82747.0,1.69890721]
[1743943271217,0.1591534,82748.0,82747.0,1.69890721]
[1743943271828,0.1631534,82748.0,82747.0,1.69890721]
[1743943272325,0.0785175,82748.0,82747.0,1.69890721]
[1743943272522,0.0362,82748.0,82747.0,1.69890721]
[1743943272826,0.1208348,82748.0,82747.0,1.69890721]
[1743943273026,0.004,82748.0,82747.0,1.69890721]
[1743943273229,0.1161338,82749.0,82748.0,0.0846348]
[1743943273519,0.1161338,82749.0,82748.0,0.10170621]
[1743943273723,0.1161338,82749.0,82748.0,0.16600621]
[1743943274728,0.1231338,82749.0,82748.0,0.16600621]
[1743943275119,0.1231338,82749.0,82748.0,0.16664621]
[1743943276227,0.0385,82749.0,82748.0,0.08201141]
[1743943278831,0.0385,82749.0,82748.0,0.08246296]
[1743943279027,8e-05,82761.0,82748.0,0.08246296]
[1743943279230,0.10076,82759.0,82749.0,0.01752296]
[1743943279428,0.0318,82758.0,82750.0,0.05022296]
[1743943279628,0.30248,82758.0,82751.0,1.51752296]
[1743943279829,0.30248,82758.0,82752.0,0.01752296]
[1743943280132,0.30248,82758.0,82753.0,0.01752296]
[1743943280434,0.3018,82758.0,82754.0,0.01752296]
[1743943280633,0.3018,82758.0,82755.0,0.01752296]
[1743943280822,0.3018,82758.0,82756.0,0.01752296]
[1743943281024,0.3068,82758.0,82757.0,0.01752296]
[1743943281226,0.3078,82758.0,82757.0,0.01752296]
[1743943281426,0.30852,82758.0,82757.0,0.01752296]
[1743943281621,0.30852,82758.0,82757.0,1.54942296]
[1743943281924,0.3078,82758.0,82757.0,1.55006296]
[1743943282127,0.3385,82758.0,82757.0,1.55006296]
[1743943283132,0.3335,82758.0,82757.0,1.55006296]
[1743943283434,0.3325,82758.0,82757.0,1.55006296]
[1743943286136,0.3325,82758.0,82757.0,1.54979245]
[1743943290130,0.3345,82758.0,82757.0,1.54979245]
[1743943291029,0.3325,82758.0,82757.0,1.54979245]
[1743943291234,0.3345,82758.0,82757.0,1.54979245]
[1743943292236,0.4191245,82758.0,82757.0,0.01789245]
[1743943292437,0.4198045,82758.0,82757.0,0.01725245]
[1743943292940,0.6098045,82758.0,82757.0,0.01725245]
[1743943293137,0.4198045,82758.0,82757.0,0.01725245]
[1743943293443,0.48518,82758.0,82740.0,0.00018131]
[1743943293634,0.3608,82742.0,82741.0,0.21823185]
[1743943293940,0.36148,82742.0,82741.0,0.21823185]
[1743943294139,0.47148,82742.0,82741.0,0.21823185]
[1743943294343,0.47148,82742.0,82741.0,0.00064]
[1743943296142,0.47248,82742.0,82741.0,0.00064]
[1743943298342,0.47248,82742.0,82740.0,0.00018131]
[1743943298643,0.0946,82741.0,82740.0,0.00082131]
[1743943298945,0.37532,82741.0,82740.0,0.00018131]
[1743943300238,0.37632,82741.0,82740.0,0.00018131]
[1743943304145,0.48455265,82741.0,82740.0,0.00018131]
[1743943305246,0.56919455,82741.0,82740.0,0.01713407]
[1743943305640,0.56919455,82741.0,82740.0,0.04833407]
[1743943306751,0.56819455,82741.0,82740.0,0.04833407]
[1743943306946,0.56919455,82741.0,82740.0,0.04833407]
[1743943309651,0.56919455,82741.0,82740.0,0.04835185]
[1743943310952,0.56919455,82741.0,82740.0,0.07835185]
[1743943311537,0.56819455,82741.0,82740.0,0.07835185]
[1743943311743,0.56919455,82741.0,82740.0,0.07835185]
[1743943312145,0.4609619,82741.0,82740.0,0.07835185]
[1743943312848,0.4297619,82741.0,82740.0,0.07835185]
[1743943315156,0.4297619,82741.0,82740.0,0.07874556]
[1743943318656,0.4297619,82741.0,82740.0,0.07858103]
[1743943318858,0.4297619,82741.0,82740.0,0.16322393]
[1743943319756,0.4297619,82741.0,82740.0,0.16394393]
[1743943320563,0.53799455,82741.0,82740.0,0.16390005]
[1743943321066,0.53799455,82741.0,82740.0,0.19630005]
[1743943321366,0.47459455,82741.0,82740.0,0.19558005]
[1743943321564,0.10995265,82741.0,82740.0,0.55638005]
[1743943321764,0.10995265,82741.0,82740.0,0.55702005]
[1743943322170,0.19459455,82741.0,82740.0,2.05702005]
[1743943322371,0.19387455,82741.0,82740.0,2.05702005]
[1743943322970,0.19287455,82741.0,82740.0,2.05902005]
[1743943323164,0.19287455,82741.0,82740.0,2.06202005]
[1743943324769,0.55367455,82741.0,82740.0,1.70122005]
[1743943324972,0.4461619,82741.0,82740.0,1.99048841]
[1743943325771,0.4461619,82741.0,82740.0,1.98748841]
[1743943325978,0.4461619,82741.0,82740.0,1.98848841]
[1743943326165,0.4461619,82741.0,82740.0,1.98748841]
[1743943326365,0.4786619,82741.0,82740.0,1.98748841]
[1743943326661,0.4786619,82741.0,82740.0,1.90284551]
[1743943326870,0.4886619,82741.0,82740.0,1.83944551]
[1743943327070,0.4886619,82741.0,82740.0,1.92378252]
[1743943327569,0.4886619,82741.0,82740.0,1.92278252]
[1743943328563,0.4896619,82741.0,82740.0,1.92278252]
[1743943328866,0.4896619,82741.0,82740.0,1.92277023]
[1743943329273,0.59689455,82741.0,82740.0,1.63350187]
[1743943330675,0.59689455,82741.0,82740.0,1.66440187]
[1743943331768,0.59689455,82741.0,82740.0,1.54885897]
[1743943331964,0.59689455,82741.0,82740.0,1.63350187]
[1743943332669,0.59689455,82741.0,82740.0,1.54885897]
[1743943332977,0.4886619,82741.0,82740.0,1.54885897]
[1743943334368,0.4896619,82741.0,82740.0,1.54885897]
[1743943335576,0.5201619,82741.0,82740.0,1.54872865]
[1743943336571,0.6644159,82741.0,82740.0,1.54872865]
[1743943336771,0.6644159,82741.0,82740.0,0.04872865]
[1743943336972,0.6644159,82741.0,82740.0,0.04808865]
[1743943338067,0.6644159,82741.0,82740.0,0.04805817]
[1743943339980,0.6644159,82741.0,82740.0,0.04811755]
[1743943341381,0.5201619,82741.0,82740.0,0.04811755]
[1743943343480,0.5201619,82741.0,82740.0,0.04806914]
[1743943345083,0.1593619,82741.0,82740.0,0.04806914]
[1743943345270,0.0963619,82741.0,82740.0,0.16635204]
[1743943345472,0.0863619,82741.0,82740.0,0.16635204]
[1743943345886,0.18048218,82746.0,82745.0,0.0846378]
[1743943346096,0.26575898,82746.0,82745.0,0.10208563]
[1743943346687,0.26575898,82746.0,82745.0,1.66758563]
[1743943347181,0.18112218,82746.0,82745.0,1.66758563]
[1743943347388,0.01226988,82759.0,82750.0,0.0846327]
[1743943347684,0.30109768,82751.0,82750.0,0.10228053]
[1743943347877,0.30209768,82751.0,82750.0,0.10228053]
[1743943348278,0.30209768,82751.0,82750.0,1.66518053]
[1743943348481,0.30109768,82751.0,82750.0,1.66518053]
[1743943348882,0.30109768,82751.0,82750.0,1.66552321]
[1743943349189,0.30109768,82751.0,82750.0,1.66952321]
[1743943349888,0.30205769,82751.0,82750.0,1.66952321]
[1743943350282,0.0846317,82751.0,82750.0,1.66852321]
[1743943351794,0.0846317,82751.0,82750.0,1.66752321]
[1743943352288,0.0846317,82751.0,82750.0,1.66552321]
[1743943352592,0.0846317,82751.0,82750.0,1.6654526]
[1743943358091,0.0846317,82751.0,82750.0,1.6664526]
[1743943358691,0.0846317,82751.0,82750.0,1.6654526]
[1743943358884,0.0846317,82751.0,82750.0,1.6674526]
[1743943360492,0.0846317,82751.0,82750.0,1.6664526]
[1743943360694,0.0846317,82751.0,82750.0,1.6674526]
[1743943360890,0.0846317,82751.0,82750.0,1.6664526]
[1743943361091,0.0846317,82751.0,82750.0,1.6674526]
[1743943361287,0.0846317,82751.0,82750.0,1.6664526]
[1743943361487,0.0846247,82758.0,82757.0,0.0846245]
[1743943361689,0.0846247,82758.0,82757.0,0.46251354]
[1743943361889,0.10839269,82759.0,82758.0,0.0846245]
[1743943362085,0.19301619,82759.0,82758.0,0.10171354]
[1743943362299,0.19301619,82759.0,82758.0,0.10267354]
[1743943363583,0.25581619,82759.0,82758.0,0.10267354]
[1743943365002,0.1474235,82759.0,82758.0,0.10267354]
[1743943365193,0.1474235,82759.0,82758.0,0.10264882]
[1743943367003,0.1474235,82759.0,82758.0,0.10243622]
[1743943368806,0.0846235,82759.0,82758.0,0.10243622]
[1743943369697,0.0846235,82759.0,82758.0,0.10255072]
[1743943370605,0.0846235,82759.0,82758.0,0.1025521]